lending/lending_fUSD_20250409
["ID","MTS","AMOUNT","RATE_DAILY","PERIOD"]
[357613705,1744235531349,-992.17,0.0004,2]
[357613706,1744235531359,-500.0,0.0004,2]
[357613707,1744235531369,-500.0,0.0004,2]
[357613708,1744235531379,-500.0,0.0004,2]
[357613709,1744235531390,-500.0,0.0004,2]
[357613710,1744235531400,-500.0,0.0004,2]
[357613711,1744235531409,-500.0,0.0004,2]
[357613712,1744235531419,-863.74,0.0004,2]
[357613713,1744235531429,-669.2,0.0004,2]
[357613714,1744235531439,-500.0,0.0004,2]
[357613715,1744235531449,-500.2,0.0004,2]
[357613716,1744235531462,-500.0,0.0004,2]
[357613717,1744235531472,-500.0,0.0004,2]
[357613718,1744235531482,-500.0,0.0004,2]
[357613719,1744235531492,-623.22,0.0004,2]
[357613720,1744235531503,-987.07,0.0004,2]
[357613721,1744235531513,-500.0,0.0004,2]
[357613722,1744235531524,-613.93049393,0.0004,2]
[357613723,1744235531534,-500.0,0.0004,2]
[357613724,1744235531544,-500.0,0.0004,2]
[357613725,1744235531554,-663.93,0.0004,2]
[357613726,1744235531563,-1150.41,0.0004,2]
[357613727,1744235531574,-500.0,0.0004,2]
[357613728,1744235531584,-500.0,0.0004,2]
[357613729,1744235531594,-950.19,0.0004,2]
[357613730,1744235531604,-700.43,0.0004,2]
[357613731,1744235531614,-1644.09,0.0004,2]
[357613732,1744235531624,-500.0,0.0004,2]
[357613733,1744235531634,-1196.11,0.0004,2]
[357613734,1744235531645,-533.1,0.0004,2]
[357613735,1744235531655,-500.0,0.0004,2]
[357613736,1744235531665,-500.0,0.0004,2]
[357613737,1744235531674,-507.80523012,0.0004,2]
[357613738,1744235531685,-500.0,0.0004,2]
[357613739,1744235531695,-509.54,0.0004,2]
[357613740,1744235531705,-344.76108655,0.0004,2]
[357613741,1744235531715,-605.75,0.0004,2]
[357613742,1744235531724,-872.19,0.0004,2]
[357613743,1744235531734,-500.0,0.0004,2]
[357613744,1744235531744,-231.64978315,0.0004,2]
[357613745,1744235531754,-2888.05,0.0004,2]
[357613746,1744235531763,-1530.18,0.0004,2]
[357613747,1744235531774,-538.29,0.0004,2]
[357613748,1744235531783,-500.0,0.0004,2]
[357613749,1744235531793,-1392.95,0.0004,2]
[357613750,1744235531803,-529.21,0.0004,2]
[357613751,1744235531813,-760.73,0.0004,2]
[357613752,1744235531822,-519.99045483,0.0004,2]
[357613753,1744235531832,-1014.21,0.0004,2]
[357613754,1744235531841,-523.87283165,0.0004,2]
[357613755,1744235531851,-728.15,0.0004,2]
[357613756,1744235531861,-671.68,0.0004,2]
[357613757,1744235531871,-582.4,0.0004,2]
[357613758,1744235531881,-500.0,0.0004,2]
[357613759,1744235531891,-500.0,0.0004,2]
[357613760,1744235531900,-600.66,0.0004,2]
[357613761,1744235531910,-500.0,0.0004,2]
[357613762,1744235531920,-500.0,0.0004,2]
[357613763,1744235531930,-905.89,0.0004,2]
[357613764,1744235531940,-500.0,0.0004,2]
[357613765,1744235531949,-640.01,0.0004,120]
[357613766,1744235531959,-500.0,0.0004,2]
[357613767,1744235531969,-500.0,0.0004,2]
[357613768,1744235531979,-600.12,0.0004,2]
[357613769,1744235531989,-500.0,0.0004,2]
[357613770,1744235531999,-555.24467804,0.0004,2]
[357613771,1744235532009,-500.0,0.0004,2]
[357613772,1744235532019,-500.0,0.0004,2]
[357613773,1744235532029,-169.05999568,0.0004,2]
[357613774,1744235532038,-696.24,0.0004,2]
[357613775,1744235532048,-574.51,0.0004,2]
[357613776,1744235532058,-621.38,0.0004,2]
[357613777,1744235532068,-736.46,0.0004,2]
[357613778,1744235532078,-564.04,0.0004,2]
[357613779,1744235532088,-500.0,0.0004,2]
[357613780,1744235532098,-662.39,0.0004,2]
[357613781,1744235532107,-1138.96,0.0004,2]
[357613782,1744235532117,-500.0,0.0004,2]
[357613783,1744235532127,-305.49484143,0.0004,2]
[357613784,1744235532137,-506.09,0.0004,2]
[357613785,1744235532147,-517.23290622,0.0004,2]
[357613786,1744235532157,-557.52,0.0004,2]
[357613787,1744235532167,-593.38,0.0004,2]
[357613788,1744235532176,-500.0,0.0004,2]
[357613789,1744235532186,-978.21,0.0004,2]
[357613790,1744235532195,-500.0,0.0004,2]
[357613791,1744235532205,-500.0,0.0004,2]
[357613792,1744235532215,-879.62,0.0004,2]
[357613793,1744235532225,-515.43178934,0.0004,2]
[357613794,1744235532235,-915.14,0.0004,2]
[357613795,1744235532244,-627.37486644,0.0004,2]
[357613796,1744235532254,-500.0,0.0004,2]
[357613797,1744235532264,-972.17,0.0004,2]
[357613798,1744235532273,-500.0,0.0004,2]
[357613799,1744235532283,-500.0,0.0004,2]
[357613800,1744235532293,-689.1,0.0004,2]
[357613801,1744235532302,-526.28195436,0.0004,2]
[357613802,1744235532312,-693.42,0.0004,2]
[357613803,1744235532322,-500.0,0.0004,2]
[357613804,1744235532331,-505.07923613,0.0004,2]
[357613805,1744235532341,-500.0,0.0004,2]
[357613806,1744235532351,-500.0,0.0004,2]
[357613807,1744235532361,-1204.18,0.0004,2]
[357613808,1744235532370,-500.0,0.0004,2]
[357613809,1744235532380,-2109.43,0.0004,2]
[357613810,1744235532390,-500.0,0.0004,2]
[357613811,1744235532400,-922.86,0.0004,2]
[357613812,1744235532409,-500.0,0.0004,2]
[357613813,1744235532419,-391.02051443,0.0004,2]
[357613814,1744235532429,-500.0,0.0004,2]
[357613815,1744235532439,-583.04879399,0.0004,2]
[357613816,1744235532449,-524.33,0.0004,2]
[357613817,1744235532462,-582.79,0.0004,2]
[357613818,1744235532473,-500.0,0.0004,2]
[357613819,1744235532483,-284.8494834,0.0004,30]
[357613820,1744235532499,-529.9,0.0004,2]
[357613821,1744235532510,-500.0,0.0004,2]
[357613822,1744235532519,-520.25,0.0004,2]
[357613823,1744235532529,-500.0,0.0004,2]
[357613824,1744235532539,-500.0,0.0004,2]
[357613825,1744235532549,-500.0,0.0004,2]
[357613826,1744235532559,-500.0,0.0004,2]
[357613827,1744235532659,-563.51,0.0004,2]
[357613828,1744235532668,-515.76,0.0004,2]
[357613829,1744235532678,-1455.64,0.0004,2]
[357613830,1744235532687,-944.08,0.0004,2]
[357613831,1744235532696,-500.0,0.0004,2]
[357613832,1744235532706,-500.0,0.0004,2]
[357613833,1744235532715,-1259.75,0.0004,2]
[357613834,1744235532725,-949.83,0.0004,2]
[357613835,1744235532735,-867.9,0.0004,2]
[357613836,1744235532745,-520.76255629,0.0004,2]
[357613837,1744235532754,-199.77985927,0.0004,2]
[357613838,1744235532763,-712.22,0.0004,2]
[357613839,1744235532773,-676.54,0.0004,2]
[357613840,1744235532783,-2873.89,0.0004,2]
[357613841,1744235532792,-500.0,0.0004,2]
[357613842,1744235532803,-500.0,0.0004,2]
[357613843,1744235532812,-865.86,0.0004,2]
[357613844,1744235532823,-734.44,0.0004,2]
[357613845,1744235532833,-1213.14,0.0004,2]
[357613846,1744235532842,-500.0,0.0004,2]
[357613847,1744235532851,-510.47,0.0004,2]
[357613848,1744235532861,-500.0,0.0004,2]
[357613849,1744235532870,-500.0,0.0004,2]
[357613850,1744235532881,-500.0,0.0004,2]
[357613851,1744235532890,-1235.75,0.0004,2]
[357613852,1744235532899,-2062.74,0.0004,2]
[357613853,1744235532909,-500.0,0.0004,2]
[357613854,1744235532919,-500.0,0.0004,2]
[357613855,1744235532929,-1627.43,0.0004,2]
[357613856,1744235532938,-779.34,0.0004,2]
[357613857,1744235532948,-1736.3,0.0004,2]
[357613858,1744235532958,-500.0,0.0004,2]
[357613859,1744235532967,-500.0,0.0004,2]
[357613860,1744235532976,-500.0,0.0004,2]
[357613861,1744235532986,-579.96,0.0004,2]
[357613862,1744235532995,-2303.11,0.0004,2]
[357613863,1744235533005,-21393.93,0.0004,2]
[357613864,1744235533015,-663.86,0.0004,2]
[357613865,1744235533025,-500.0,0.0004,2]
[357613866,1744235533034,-1487.15,0.0004,2]
[357613867,1744235533044,-500.0,0.0004,2]
[357613868,1744235533054,-1444.32,0.0004,2]
[357613869,1744235533064,-531.51,0.0004,2]
[357613870,1744235533074,-798.61,0.0004,2]
[357613871,1744235533083,-1448.83,0.0004,2]
[357613872,1744235533092,-1070.68,0.0004,2]
[357613873,1744235533102,-204.8076288,0.0004,2]
[357613874,1744235533111,-675.07,0.0004,2]
[357613875,1744235533120,-720.05,0.0004,2]
[357613876,1744235533130,-4523.75,0.0004,2]
[357613877,1744235533140,-1045.81,0.0004,2]
[357613878,1744235533149,-2369.93,0.0004,2]
[357613879,1744235533158,-152.64185641,0.0004,2]
[357613880,1744235533168,-815.31,0.0004,2]
[357613881,1744235533178,-680.79,0.0004,2]
[357613882,1744235533188,-3877.45,0.0004,2]
[357613883,1744235533197,-1072.51,0.0004,2]
[357613884,1744235533207,-920.84,0.0004,2]
[357613885,1744235533216,-500.0,0.0004,2]
[357613886,1744235533226,-1250.82,0.0004,2]
[357613887,1744235533235,-500.0,0.0004,2]
[357613888,1744235533244,-1683.83,0.0004,2]
[357613889,1744235533254,-904.45,0.0004,2]
[357613890,1744235533264,-500.0,0.0004,2]
[357613891,1744235533273,-8073.34,0.0004,2]
[357613892,1744235533282,-951.26,0.0004,2]
[357613893,1744235533292,-500.0,0.0004,2]
[357613894,1744235533301,-500.0,0.0004,2]
[357613895,1744235533311,-567.52,0.0004,2]
[357613896,1744235533320,-500.0,0.0004,2]
[357613897,1744235533330,-714.37,0.0004,2]
[357613898,1744235533340,-507.52,0.0004,2]
[357613899,1744235533350,-1034.56,0.0004,2]
[357613900,1744235533360,-7044.24,0.0004,2]
[357613901,1744235533369,-593.89,0.0004,2]
[357613902,1744235533379,-614.18,0.0004,2]
[357613903,1744235533389,-500.0,0.0004,2]
[357613904,1744235533399,-500.0,0.0004,2]
[357613905,1744235533408,-1165.25,0.0004,2]
[357613906,1744235533418,-1119.95,0.0004,2]
[357613907,1744235533428,-562.14957676,0.0004,120]
[357613908,1744235533438,-505.71889321,0.0004,2]
[357613909,1744235533447,-1010.11,0.0004,2]
[357613910,1744235533460,-3541.99,0.0004,2]
[357613911,1744235533470,-2285.66,0.0004,2]
[357613912,1744235533480,-1097.67,0.0004,2]
[357613913,1744235533490,-500.0,0.0004,2]
[357613914,1744235533499,-500.0,0.0004,2]
[357613915,1744235533510,-500.0,0.0004,2]
[357613916,1744235533520,-737.02,0.0004,2]
[357613917,1744235533530,-1205.42,0.0004,2]
[357613918,1744235533540,-622.25,0.0004,2]
[357613919,1744235533550,-626.72,0.0004,2]
[357613920,1744235533559,-1595.13,0.0004,2]
[357613921,1744235533569,-1037.81,0.0004,2]
[357613922,1744235533579,-993.54,0.0004,2]
[357613923,1744235533588,-510.83839287,0.0004,2]
[357613924,1744235533598,-4569.67,0.0004,2]
[357613925,1744235533608,-597.13,0.0004,2]
[357613926,1744235533617,-925.07,0.0004,2]
[357613927,1744235533627,-500.0,0.0004,2]
[357613928,1744235533637,-191.81057927,0.0004,2]
[357613929,1744235533646,-930.17,0.0004,2]
[357613930,1744235533656,-500.0,0.0004,2]
[357613931,1744235533666,-733.46,0.0004,2]
[357613932,1744235533675,-500.0,0.0004,2]
[357613933,1744235533685,-803.16,0.0004,2]
[357613934,1744235533695,-1134.05,0.0004,2]
[357613935,1744235533704,-500.0,0.0004,2]
[357613936,1744235533714,-6999.86,0.0004,2]
[357613937,1744235533724,-500.0,0.0004,2]
[357613938,1744235533733,-2881.42,0.0004,2]
[357613939,1744235533743,-500.0,0.0004,2]
[357613940,1744235533753,-42423.7,0.0004,2]
[357613941,1744235533763,-500.0,0.0004,2]
[357613942,1744235533772,-1337.8,0.0004,2]
[357613943,1744235533782,-1079.31,0.0004,2]
[357613944,1744235533791,-509.05,0.0004,2]
[357613945,1744235533800,-500.0,0.0004,2]
[357613946,1744235533811,-500.0,0.0004,2]
[357613947,1744235533820,-500.0,0.0004,2]
[357613948,1744235533831,-1032.24,0.0004,2]
[357613949,1744235533840,-1046.49,0.0004,2]
[357613950,1744235533850,-1965.19,0.0004,2]
[357613951,1744235533859,-500.0,0.0004,2]
[357613952,1744235533869,-1002.75,0.0004,2]
[357613953,1744235533879,-23770.72,0.0004,2]
[357613954,1744235533889,-500.0,0.0004,2]
[357613955,1744235533898,-500.0,0.0004,2]
[357613956,1744235533908,-608.03443595,0.0004,2]
[357613957,1744235533918,-500.0,0.0004,2]
[357613958,1744235533927,-1158.53,0.0004,2]
[357613959,1744235533937,-500.0,0.0004,2]
[357613960,1744235533947,-500.0,0.0004,2]
[357613961,1744235533956,-500.0,0.0004,2]
[357613962,1744235533966,-2575.45,0.0004,2]
[357613963,1744235533975,-500.0,0.0004,2]
[357613964,1744235533985,-839.12,0.0004,2]
[357613965,1744235533994,-500.0,0.0004,2]
[357613966,1744235534004,-500.0,0.0004,2]
[357613967,1744235534013,-1417.52,0.0004,2]
[357613968,1744235534023,-375.65,0.0004,2]
[357613969,1744235534032,-2351.29,0.0004,2]
[357613970,1744235534041,-500.0,0.0004,2]
[357613971,1744235534051,-925.42,0.0004,2]
[357613972,1744235534060,-500.0,0.0004,2]
[357613973,1744235534069,-500.0,0.0004,2]
[357613974,1744235534079,-519.01855022,0.0004,2]
[357613975,1744235534089,-500.0,0.0004,2]
[357613976,1744235534098,-4543.65,0.0004,2]
[357613977,1744235534108,-500.0,0.0004,2]
[357613978,1744235534119,-589.28,0.0004,2]
[357613979,1744235534131,-500.0,0.0004,2]
[357613980,1744235534141,-1261.56,0.0004,2]
[357613981,1744235534151,-908.44,0.0004,2]
[357613982,1744235534161,-867.74,0.0004,2]
[357613983,1744235534170,-907.73,0.0004,2]
[357613984,1744235534181,-660.09,0.0004,2]
[357613985,1744235534190,-1190.9,0.0004,2]
[357613986,1744235534201,-4887.83,0.0004,2]
[357613987,1744235534211,-500.0,0.0004,2]
[357613988,1744235534220,-1267.15,0.0004,2]
[357613989,1744235534230,-500.0,0.0004,2]
[357613990,1744235534239,-500.0,0.0004,2]
[357613991,1744235534249,-569.14085259,0.0004,2]
[357613992,1744235534259,-575.82,0.0004,2]
[357613993,1744235534268,-774.45,0.0004,2]
[357613994,1744235534279,-2640.49,0.0004,2]
[357613995,1744235534290,-929.61,0.0004,2]
[357613996,1744235534299,-570.35,0.0004,2]
[357613997,1744235534309,-1204.87,0.0004,2]
[357613998,1744235534318,-775.07,0.0004,2]
[357613999,1744235534328,-561.8,0.0004,2]
[357614000,1744235534337,-535.49,0.0004,2]
[357614001,1744235534347,-852.59,0.0004,2]
[357614002,1744235534356,-706.53,0.0004,2]
[357614003,1744235534365,-500.0,0.0004,2]
[357614004,1744235534375,-1156.21,0.0004,2]
[357614005,1744235534385,-1013.54,0.0004,2]
[357614006,1744235534395,-1279.0,0.0004,2]
[357614007,1744235534405,-1035.19,0.0004,2]
[357614008,1744235534415,-846.03,0.0004,2]
[357614009,1744235534424,-253.00020785,0.0004,2]
[357614010,1744235534434,-2136.41,0.0004,2]
[357614011,1744235534443,-500.0,0.0004,2]
[357614012,1744235534452,-500.0,0.0004,2]
[357614013,1744235534466,-500.0,0.0004,2]
[357614014,1744235534476,-500.0,0.0004,2]
[357614015,1744235534485,-4235.64,0.0004,2]
[357614016,1744235534495,-592.54,0.0004,2]
[357614017,1744235534505,-1028.37,0.0004,2]
[357614018,1744235534515,-655.91,0.0004,2]
[357614019,1744235534524,-774.63,0.0004,2]
[357614020,1744235534534,-500.0,0.0004,2]
[357614021,1744235534543,-668.99,0.0004,2]
[357614022,1744235534553,-635.46,0.0004,2]
[357614023,1744235534561,-500.0,0.0004,2]
[357614024,1744235534571,-771.42,0.0004,2]
[357614025,1744235534581,-500.0,0.0004,2]
[357614026,1744235534591,-500.0,0.0004,2]
[357614027,1744235534600,-500.0,0.0004,2]
[357614028,1744235534610,-631.73,0.0004,2]
[357614029,1744235534619,-1805.21,0.0004,2]
[357614030,1744235534630,-500.0,0.0004,2]
[357614031,1744235534639,-500.0,0.0004,2]
[357614032,1744235534649,-500.0,0.0004,2]
[357614033,1744235534659,-2082.58,0.0004,2]
[357614034,1744235534670,-212.36365094,0.0004,2]
[357614035,1744235534679,-950.96,0.0004,2]
[357614036,1744235534689,-548.27,0.0004,2]
[357614037,1744235534699,-777.86,0.0004,2]
[357614038,1744235534708,-500.0,0.0004,2]
[357614039,1744235534719,-720.17,0.0004,2]
[357614040,1744235534730,-500.0,0.0004,2]
[357614041,1744235534739,-1059.64,0.0004,2]
[357614042,1744235534749,-587.39,0.0004,2]
[357614043,1744235534759,-1208.61,0.0004,2]
[357614044,1744235534768,-174266.75,0.0004,2]
[357614045,1744235534778,-1106.78,0.0004,2]
[357614046,1744235534787,-1260.1,0.0004,2]
[357614047,1744235534796,-602.31935187,0.0004,2]
[357614048,1744235534806,-500.0,0.0004,2]
[357614049,1744235534816,-738.67,0.0004,2]
[357614050,1744235534825,-500.0,0.0004,2]
[357614051,1744235534835,-1252.62,0.0004,2]
[357614052,1744235534845,-500.0,0.0004,2]
[357614053,1744235534855,-1523.75,0.0004,2]
[357614054,1744235534865,-500.0,0.0004,2]
[357614055,1744235534875,-281491.48516526,0.0004,6]
[357614056,1744235534885,-500.0,0.0004,2]
[357614057,1744235534895,-818.49,0.0004,2]
[357614058,1744235534907,-1179.84,0.0004,2]
[357614059,1744235534916,-1025.1,0.0004,2]
[357614060,1744235534927,-2893.36,0.0004,2]
[357614061,1744235534937,-500.0,0.0004,2]
[357614062,1744235534947,-764.1,0.0004,2]
[357614063,1744235534956,-21329.92,0.0004,2]
[357614064,1744235534965,-707.54,0.0004,2]
[357614065,1744235534975,-500.0,0.0004,2]
[357614066,1744235534984,-1217.62,0.0004,2]
[357614067,1744235534994,-500.0,0.0004,2]
[357614068,1744235535003,-500.0,0.0004,2]
[357614069,1744235535012,-653.91,0.0004,2]
[357614070,1744235535021,-2083.86,0.0004,2]
[357614071,1744235535031,-334.99305149,0.0004,2]
[357614072,1744235535040,-2729.49,0.0004,2]
[357614073,1744235535050,-545.55,0.0004,2]
[357614074,1744235535060,-500.0,0.0004,2]
[357614075,1744235535069,-500.0,0.0004,2]
[357614076,1744235535079,-510.38,0.0004,2]
[357614077,1744235535088,-1954.17,0.0004,2]
[357614078,1744235535098,-1354.05,0.0004,2]
[357614079,1744235535108,-814.9,0.0004,2]
[357614080,1744235535117,-500.0,0.0004,2]
[357614081,1744235535126,-286.78185901,0.0004,2]
[357614082,1744235535136,-1048.37,0.0004,2]
[357614083,1744235535146,-478.74158759,0.0004,2]
[357614084,1744235535155,-500.0,0.0004,2]
[357614085,1744235535165,-4649.78,0.0004,2]
[357614086,1744235535175,-500.0,0.0004,2]
[357614087,1744235535184,-1964.65,0.0004,2]
[357614088,1744235535194,-500.0,0.0004,2]
[357614089,1744235535203,-694.5,0.0004,2]
[357614090,1744235535213,-500.0,0.0004,2]
[357614091,1744235535222,-1127.83,0.0004,2]
[357614092,1744235535232,-507.13,0.0004,2]
[357614093,1744235535241,-500.0,0.0004,2]
[357614094,1744235535251,-570.34,0.0004,2]
[357614095,1744235535261,-1498.03,0.0004,2]
[357614096,1744235535270,-809.55,0.0004,2]
[357614097,1744235535279,-2525.83,0.0004,2]
[357614098,1744235535289,-775.82,0.0004,2]
[357614099,1744235535298,-500.0,0.0004,2]
[357614100,1744235535308,-955.21,0.0004,2]
[357614101,1744235535317,-500.0,0.0004,2]
[357614102,1744235535327,-1151.05,0.0004,2]
[357614103,1744235535337,-500.0,0.0004,2]
[357614104,1744235535346,-500.0,0.0004,2]
[357614105,1744235535356,-969.06,0.0004,2]
[357614106,1744235535366,-500.0,0.0004,2]
[357614107,1744235535375,-500.0,0.0004,2]
[357614108,1744235535385,-500.0,0.0004,2]
[357614109,1744235535395,-511.52,0.0004,2]
[357614110,1744235535405,-686.74,0.0004,2]
[357614111,1744235535414,-507.91,0.0004,2]
[357614112,1744235535423,-5051.26,0.0004,2]
[357614113,1744235535432,-500.0,0.0004,2]
[357614114,1744235535442,-500.0,0.0004,2]
[357614115,1744235535451,-757.52,0.0004,2]
[357614116,1744235535465,-159.56,0.00040002,2]
[357614117,1744235535475,-159.56,0.00040002,2]
[357614118,1744235535484,-1000.0,0.00040032,30]
[357614119,1744235535493,-324.0,0.0004014,2]
[357614120,1744235535504,-151.041005,0.00040198,120]
[357614121,1744235535514,-1000.0,0.00040204,5]
[357614122,1744235535523,-244.71946233,0.00040273,2]
[357614123,1744235535533,-500.0,0.00040273,2]
[357614124,1744235535544,-500.0,0.00040273,2]
[357614125,1744235535553,-1000.0,0.00040273,2]
[357614126,1744235535563,-500.0,0.00040273,2]
[357614127,1744235535572,-500.0,0.00040273,2]
[357614128,1744235535581,-768.82,0.00040273,2]
[357614129,1744235535591,-1033.22,0.00040273,2]
[357614130,1744235535600,-500.0,0.00040273,2]
[357614131,1744235535610,-500.0,0.00040273,2]
[357614132,1744235535619,-690.19,0.00040273,2]
[357614133,1744235535628,-500.0,0.00040273,2]
[357614134,1744235535638,-500.0,0.00040273,2]
[357614135,1744235535647,-653.93,0.00040273,2]
[357614136,1744235535656,-500.0,0.00040273,2]
[357614137,1744235535665,-500.0,0.00040273,2]
[357614138,1744235535674,-500.0,0.00040273,2]
[357614139,1744235535684,-500.0,0.00040273,2]
[357614140,1744235535693,-500.0,0.00040273,2]
[357614141,1744235535702,-500.0,0.00040273,2]
[357614142,1744235535711,-562.39,0.00040273,2]
[357614143,1744235535720,-500.0,0.00040273,2]
[357614144,1744235535730,-326.44071212,0.00040273,2]
[357614145,1744235535739,-500.0,0.00040273,2]
[357614146,1744235535748,-500.0,0.00040273,2]
[357614147,1744235535757,-523.63,0.00040273,2]
[357614148,1744235535767,-575.25,0.00040273,2]
[357614149,1744235535777,-643.66,0.00040273,2]
[357614150,1744235535786,-500.0,0.00040273,2]
[357614151,1744235535795,-498.12256767,0.00040273,2]
[357614152,1744235535804,-500.0,0.00040273,2]
[357614153,1744235535814,-517.26,0.00040273,2]
[357614154,1744235535823,-500.0,0.00040273,2]
[357614155,1744235535833,-500.0,0.00040273,2]
[357614156,1744235535842,-509.1,0.00040273,2]
[357614157,1744235535851,-544.02,0.00040273,2]
[357614158,1744235535861,-1591.25,0.00040273,2]
[357614159,1744235535870,-500.0,0.00040273,2]
[357614160,1744235535880,-158.229282,0.00040273,2]
[357614161,1744235535889,-922.766495,0.00040273,2]
[357614162,1744235535899,-500.0,0.00040273,2]
[357614163,1744235535908,-500.0,0.00040273,2]
[357614164,1744235535918,-500.0,0.00040273,2]
[357614165,1744235535927,-512.21,0.00040273,2]
[357614166,1744235535937,-1481.605419,0.00040273,2]
[357614167,1744235535946,-500.0,0.00040273,2]
[357614168,1744235535956,-575.18,0.00040273,2]
[357614169,1744235535965,-1103.241651,0.00040273,2]
[357614170,1744235535975,-500.0,0.00040273,2]
[357614171,1744235535985,-152.130457,0.00040273,2]
[357614172,1744235535994,-555.55,0.00040273,2]
[357614173,1744235536004,-716.17,0.00040273,2]
[357614174,1744235536013,-569.8,0.00040273,2]
[357614175,1744235536022,-500.0,0.00040273,2]
[357614176,1744235536032,-500.0,0.00040273,2]
[357614177,1744235536042,-500.0,0.00040273,2]
[357614178,1744235536051,-279.179549,0.00040273,2]
[357614179,1744235536061,-500.0,0.00040273,2]
[357614180,1744235536070,-500.0,0.00040273,2]
[357614181,1744235536080,-500.0,0.00040273,2]
[357614182,1744235536089,-500.0,0.00040273,2]
[357614183,1744235536099,-523.55,0.00040273,2]
[357614184,1744235536108,-500.0,0.00040273,2]
[357614185,1744235536118,-500.0,0.00040273,2]
[357614186,1744235536128,-641.56,0.00040273,2]
[357614187,1744235536137,-522.12,0.00040273,2]
[357614188,1744235536147,-671.33,0.00040273,2]
[357614189,1744235536156,-500.0,0.00040273,2]
[357614190,1744235536167,-500.0,0.00040273,2]
[357614191,1744235536176,-898.3,0.00040273,2]
[357614192,1744235536186,-500.0,0.00040273,2]
[357614193,1744235536195,-500.0,0.00040273,2]
[357614194,1744235536204,-500.0,0.00040273,2]
[357614195,1744235536214,-500.0,0.00040273,2]
[357614196,1744235536224,-500.0,0.00040273,2]
[357614197,1744235536233,-500.0,0.00040273,2]
[357614198,1744235536243,-500.0,0.00040273,2]
[357614199,1744235536252,-156.788597,0.00040273,2]
[357614200,1744235536262,-1488.11,0.00040273,2]
[357614201,1744235536271,-1000.0,0.00040273,2]
[357614202,1744235536280,-500.0,0.00040273,2]
[357614203,1744235536290,-500.0,0.00040273,2]
[357614204,1744235536299,-500.0,0.00040273,2]